Cogmind - Beta 12 @@@ ROGUE MODE // 2023.12.06 @ 21:02:37 Player: Dosh Result: Destroyed by S-10 Pest with Light Assault Rifle Performance ------------- Evolutions (0) 0 Regions Visited (4) 800 Robots Destroyed (20) 100 Value Destroyed (484) 484 Prototype IDs (25) 500 Alien Tech Used (0) 0 Bonus (374) 374 TOTAL SCORE: 2258 Bonus ------- Follower Combat Kills 74 Aligned with FarCom 300 Cogmind --------- Core Integrity 0/250 Matter 251/300 Energy 100/100 System Corruption 0% Temperature Cool (6) Movement Core (700) Ox13 Location -9/Mines Parts ------- > --- POWER (1) -------- (None) > --- PROPULSION (2) --- (None) > --- UTILITY (2) ------ High-capacity Storage Unit > --- WEAPON (2) ------- Light Assault Rifle Light Assault Rifle > --- INVENTORY (20) --- Ion Engine Compact Wheel Small Storage Unit Signal Interpreter Advanced Targeting Computer Hacking Suite Hacking Suite Improved Trap Extractor (0/6) Medium Laser AWS/Autocannon Mace Peak State ------------ > --- POWER ------------ Light Nuclear Core > --- PROPULSION ------- Light Treads Light Treads > --- UTILITY ---------- High-capacity Storage Unit Improved Trap Extractor > --- WEAPON ----------- Medium Laser Assault Rifle > --- INVENTORY -------- Ion Engine Compact Wheel Small Storage Unit Signal Interpreter Weapon Shielding Hacking Suite Light Assault Rifle Light Assault Rifle Light Cannon Mace [Rating: 13] Favorites ----------- Power Light Nuclear Core Engine Light Ion Engine Power Core Light Nuclear Core Propulsion Light Treads Treads Light Treads Utility High-capacity Storage Unit Device Improved Trap Extractor Storage High-capacity Storage Unit Protection Weapon Shielding Weapon Medium Laser Energy Gun Medium Laser Ballistic Gun Assault Rifle Ballistic Cannon Light Cannon Build | -11 -10 -10 -10 -9 ------- Run | Jun Mat Min Exi Min Slots Evolved . | . . . . . Power . | . . . . . Propulsion . | . . . . . Utility . | . . . . . Weapon . | . . . . . Parts Attached 15 | 6 4 2 1 2 Power 2 | 1 1 . . . Engine 1 | 1 . . . . Core 1 | . 1 . . . Reactor . | . . . . . Propulsion 3 | 2 1 . . . Treads 3 | 2 1 . . . Leg . | . . . . . Wheel . | . . . . . Hover . | . . . . . Flight . | . . . . . Utility 5 | 1 2 1 . 1 Device 1 | . . 1 . . Storage 2 | 1 1 . . . Processor . | . . . . . Hackware . | . . . . . Protection 2 | . 1 . . 1 Artifact . | . . . . . Weapon 5 | 2 . 1 1 1 Energy Gun 1 | 1 . . . . Energy Cannon . | . . . . . Ballistic Gun 3 | 1 . . 1 1 Ballistic Cannon 1 | . . 1 . . Launcher . | . . . . . Special Weapon . | . . . . . Impact Weapon . | . . . . . Slashing Weapon . | . . . . . Piercing Weapon . | . . . . . Special Melee Weapon . | . . . . . Unidentified Prototypes . | . . . . . Parts Lost 7 | . 1 1 . 5 Power 2 | . 1 . . 1 Propulsion 2 | . . . . 2 Utility 1 | . . . . 1 Weapon 2 | . . 1 . 1 Highest Loss Streak 5 | . 1 1 . 5 To Critical Strikes . | . . . . . Average Slot Usage (%) 88 | . 91 88 85 66 Engine 4 | . 10 . . . Core 9 | . 2 14 14 4 Treads 27 | . 27 28 28 14 Storage 14 | . 14 14 14 14 Protection 4 | . 7 2 . 4 Energy Gun 10 | . 14 12 . . Ballistic Gun 13 | . 14 12 14 14 Ballistic Cannon 3 | . . 1 14 14 Naked Turns . | . . . . . Heaviest Build 52 | 12 50 52 49 . Greatest Support 40 | 40 40 40 40 . Greatest Overweight (x) 1 | . 1 1 1 . Average Overweight (x) . | . . 1 1 . Largest Inventory Capacity 20 | 8 20 20 20 20 Average Capacity 18 | 6 17 20 20 20 Most Carried 15 | 3 9 13 15 15 Average Carried 10 | 1 7 12 13 14 Final Capacity 20 | 8 20 20 20 20 Final Carried 15 | 3 9 13 15 13 Class Distribution -------------------- 100% | Mutant Dominant Class ---------------- Mutant | -10/Materials Mutant | -10/Mines Mutant | -10/Exiles Mutant | -9/Mines Resources | -11 -10 -10 -10 -9 ----------- Run | Jun Mat Min Exi Min Matter Collected 450 | 222 165 63 . . Remotely . | . . . . . Salvage Created 473 | . 378 28 . 67 Parts 30 | . 19 1 . 10 Haulers Intercepted . | . . . . . Recyclers Shooed . | . . . . . Parts Field Recycled . | . . . . . Retrieved Matter . | . . . . . Parts Self-Destructed . | . . . . . Prevented . | . . . . . Kills | -11 -10 -10 -10 -9 ------- Run | Jun Mat Min Exi Min Combat Hostiles Destroyed 18 | . 11 2 . 5 Guns 12 | . 10 1 . 1 Cannons 5 | . . 1 . 4 Classes Destroyed 5 | . 4 1 . . Operator 1 | . 1 . . . Watcher 1 | . 1 . . . Swarmer 8 | . 4 . . 4 Grunt 9 | . 7 1 . 1 Demolisher 1 | . . 1 . . Best Kill Streak 5 | . 3 1 . 5 Combat Bots Only 5 | . 3 1 . 5 Max Kills in Single Turn 1 | . 1 1 . 1 Gunslinging . | . . . . . Exploded . | . . . . . Melee . | . . . . . Uniques/NPCs Destroyed . | . . . . . Combat | -11 -10 -10 -10 -9 -------- Run | Jun Mat Min Exi Min Damage Taken 1222 | . 520 232 . 470 Core 252 | . 161 15 . 76 Absorbed by Shields . | . . . . . Redirected to Shielding 52 | . 23 . . 29 Regen/Repaired (Parts) 113 | . 113 . . . Core Remaining (%) 100 | 100 . . . . Volleys Fired 54 | . 36 8 . 10 Largest 2 | . 2 2 . 2 Hottest 70 | . 70 70 . 55 Shots Fired 105 | . 72 13 . 20 Gun 93 | . 72 9 . 12 Cannon 12 | . . 4 . 8 Launcher . | . . . . . Special . | . . . . . Kinetic 65 | . 36 9 . 20 Thermal 40 | . 36 4 . . Explosive . | . . . . . Electromagnetic . | . . . . . Robot Hit Streak 16 | . 16 10 . 5 Robot Miss Streak 3 | . 2 2 . 3 Penetration Max . | . . . . . Secondary Targets . | . . . . . Shots Hit Robots 75 | . 54 9 . 12 Core Hits 34 | . 21 4 . 9 Critical Kills . | . . . . . Critical Parts Destroyed . | . . . . . Critical Strikes 3 | . 3 . . . Burn 3 | . 3 . . . Melee Attacks . | . . . . . Impact . | . . . . . Slashing . | . . . . . Piercing . | . . . . . Sneak Attacks . | . . . . . Combat Hostiles . | . . . . . Follow-up Attacks . | . . . . . Damage Inflicted 996 | . 678 129 . 189 Guns 819 | . 678 76 . 65 Cannons 177 | . . 53 . 124 Explosions . | . . . . . Melee . | . . . . . Ramming . | . . . . . Kinetic 608 | . 339 80 . 189 Thermal 388 | . 339 49 . . Explosive . | . . . . . Electromagnetic . | . . . . . Impact . | . . . . . Slashing . | . . . . . Piercing . | . . . . . Highest Corruption . | . . . . . Average Corruption . | . . . . . Corruption Purged . | . . . . . Corruption Blocked . | . . . . . Overload Shots . | . . . . . Overflow Damage . | . . . . . Projectiles . | . . . . . Explosions . | . . . . . Melee . | . . . . . Knockbacks 1 | . . 1 . . Impact . | . . . . . Kinetic 1 | . . 1 . . Secondary . | . . . . . Self-Inflicted Damage . | . . . . . Shots . | . . . . . Rammed . | . . . . . Targets Rammed . | . . . . . Kicked . | . . . . . Crushed . | . . . . . Highest Temperature 132 | . 132 63 . 41 Average Temperature 33 | . 36 30 . 15 Received Heat Transfer 396 | . 222 45 . 129 Siege Activations . | . . . . . Robots Corrupted . | . . . . . Combat Hostiles . | . . . . . Parts Fried . | . . . . . Impact Corruptions . | . . . . . Robots Melted 1 | . 1 . . . Combat Hostiles 1 | . 1 . . . Parts Melted 3 | . 2 1 . . Heat Transferred 1369 | . 1221 148 . . Parts Sabotaged . | . . . . . Parts Stolen . | . . . . . Parts Stripped . | . . . . . Power Chain Reactions . | . . . . . Missiles Intercepted . | . . . . . Alert | -11 -10 -10 -10 -9 ------- Run | Jun Mat Min Exi Min Peak Influence 169 | . 169 97 . 95 Initial 44 | . . 44 . . Average 49 | . 68 29 . 72 Maximum Alert Level . | . . . . . Low Security (%) 100 | 100 100 100 . 100 Level 1 . | . . . . . Level 2 . | . . . . . Level 3 . | . . . . . Level 4 . | . . . . . Level 5 . | . . . . . High Security . | . . . . . Max Security . | . . . . . Squads Dispatched 3 | . 3 . . . Investigation 2 | . 2 . . . Extermination . | . . . . . Reinforcement 1 | . 1 . . . Assault . | . . . . . Garrison . | . . . . . Intercept . | . . . . . Searches Triggered . | . . . . . Construction Impeded . | . . . . . Haulers Reinforced . | . . . . . Active Scanning Responses . | . . . . . Cargo Convoy Interrupts . | . . . . . Stealth | -11 -10 -10 -10 -9 --------- Run | Jun Mat Min Exi Min Distress Signals . | . . . . . Communications Jammed . | . . . . . Distress Signals . | . . . . . Times Spotted 43 | . 15 20 . 8 Peak Tracking Total 11 | . 3 11 . 6 Tactical Retreats 1 | . 1 . . . Traps | -11 -10 -10 -10 -9 ------- Run | Jun Mat Min Exi Min Traps Triggered 2 | . 1 1 . . Indirectly . | . . . . . Trap Hack Attempts . | . . . . . Triggered . | . . . . . Disarmed . | . . . . . Reprogrammed . | . . . . . Reused . | . . . . . Traps Extracted . | . . . . . Installed . | . . . . . Triggered . | . . . . . Machines | -11 -10 -10 -10 -9 ---------- Run | Jun Mat Min Exi Min Machines Disabled . | . . . . . Max in Single Turn . | . . . . . Machines Repaired . | . . . . . Machines Sabotaged . | . . . . . Overloaded Fab Kills . | . . . . . Hacking | -11 -10 -10 -10 -9 --------- Run | Jun Mat Min Exi Min Machines Accessed 8 | . 5 2 1 . Terminals 4 | . 4 . . . Fabricators . | . . . . . Repair Stations 1 | . 1 . . . Recycling Units . | . . . . . Scanalyzers . | . . . . . Garrison Access . | . . . . . Total Hacks 12 | . 9 2 1 . Successful 9 | . 6 2 1 . Failed 3 | . 3 . . . Catastrophic . | . . . . . Database Lockouts . | . . . . . Manual 6 | . 5 . 1 . Terminals 6 | . 6 . . . Fabricators . | . . . . . Repair Stations 3 | . 3 . . . Recycling Units . | . . . . . Scanalyzers . | . . . . . Garrison Access . | . . . . . Terminal Hacks 4 | . 1 2 1 . Prototype ID Bank 1 | . 1 . . . Open Door 2 | . . 2 . . EX-Prototype ID Bank 1 | . . . 1 . Fabricator Hacks . | . . . . . Repair Station Hacks 2 | . 2 . . . Scan Component 1 | . 1 . . . Repair 1 | . 1 . . . Recycling Unit Hacks . | . . . . . Scanalyzer . | . . . . . Garrison Access Hacks . | . . . . . Unauthorized Hacks 3 | . 3 . . . Terminals 3 | . 3 . . . Botnet 2 | . 2 . . . Operators 1 | . 1 . . . Fabricators . | . . . . . Repair Stations . | . . . . . Recycling Units . | . . . . . Scanalyzers . | . . . . . Garrison Access . | . . . . . Data Cores Recovered . | . . . . . Used . | . . . . . Hacking Detections 3 | . 3 . . . Full Trace Events 1 | . 1 . . . Feedback Events . | . . . . . Feedback Blocked . | . . . . . Robot Schematics Acquired . | . . . . . Robots Built . | . . . . . Authchips . | . . . . . Time . | . . . . . Total Robot Build Rating . | . . . . . Part Schematics Acquired . | . . . . . Parts Built . | . . . . . Authchips . | . . . . . Time . | . . . . . Total Part Build Rating . | . . . . . Parts Repaired 1 | . 1 . . . Time 26 | . 26 . . . Parts Recycled . | . . . . . Recycled Matter . | . . . . . Retrieved Matter . | . . . . . Retrieved Components . | . . . . . Parts Scanalyzed . | . . . . . Part Schematics Acquired . | . . . . . Parts Damaged . | . . . . . Bothacking | -11 -10 -10 -10 -9 ------------ Run | Jun Mat Min Exi Min Used RIF Installer . | . . . . . Robots Hacked . | . . . . . Non-combat . | . . . . . Combat . | . . . . . Robot Hacks Applied . | . . . . . Relay Couplers Released . | . . . . . Fabnet Peak Effective % . | . . . . . Robots Rewired . | . . . . . Allies Hacked . | . . . . . Hacks Repelled . | . . . . . Allies | -11 -10 -10 -10 -9 -------- Run | Jun Mat Min Exi Min Total Allies 4 | . . 4 . . Largest Group 3 | . . 3 . . Highest-Rated Group 47 | . . 47 . . Highest-Rated Ally 31 | . . 31 . . Total Orders . | . . . . . Ally Attacks 17 | . . 17 . . Total Damage 208 | . . 208 . . Kills 5 | . . 5 . . Allies Corrupted . | . . . . . Allies Melted . | . . . . . Intel | -11 -10 -10 -10 -9 ------- Run | Jun Mat Min Exi Min Robot Analysis Total . | . . . . . Derelict Logs Recovered 1 | . . 1 . . Drone Launches . | . . . . . Drone Recoveries . | . . . . . Exploration | -11 -10 -10 -10 -9 ------------- Run | Jun Mat Min Exi Min Turns Passed 2486 | 75 1040 807 535 29 Spaces Moved 985 | 41 395 326 223 . Core 1 | 1 . . . . Treads 984 | 40 395 326 223 . Legs . | . . . . . Wheels . | . . . . . Hover . | . . . . . Flight . | . . . . . Fastest Speed 50 | 50 160 240 240 . Average Speed 227 | 157 216 240 240 . Slowest Speed 240 | 160 240 240 240 . Overloaded Moves . | . . . . . Propulsion Burnouts . | . . . . . Robots Hopped . | . . . . . Cave-ins Triggered . | . . . . . Exploration Rate (%) 40 | 4 59 75 62 2 Regions Visited 4 Branch Regions 3 Pre-discovered Areas . | . . . . . Known Exits Taken . | . . . . . Unknown Exits Taken 4 | 1 1 1 1 . Scrap Searched 1 | . . 1 . . Spaces Dug . | . . . . . Terrain Destroyed . | . . . . . Melee . | . . . . . Projectile . | . . . . . AOE . | . . . . . Terrain Rammed . | . . . . . Walls Destroyed . | . . . . . Machines Disabled . | . . . . . Actions | -11 -10 -10 -10 -9 --------- Run | Jun Mat Min Exi Min Total 1133 | 49 509 339 224 12 Wait 67 | . 67 . . . Move 981 | 40 394 325 222 . Hop . | . . . . . Pick Up 12 | 3 6 2 1 . Fast Attach 11 | 6 4 1 . . Attach 3 | . . . 1 2 Detach 3 | . 1 2 . . Swap 1 | . . 1 . . Drop 1 | . 1 . . . Fire 54 | . 36 8 . 10 Melee . | . . . . . Ram . | . . . . . Kick . | . . . . . Crush . | . . . . . Escape Stasis . | . . . . . Rewire . | . . . . . Trap . | . . . . . Miscellaneous . | . . . . . Route ------- -11/Junkyard -10/Materials (discovered 2 exits: [*Mat] / *Min) -10/Mines (discovered 2 exits: [*Mat] / *Exi) -10/Exiles -9/Mines History --------- Turn | Location | Event 5 | -11/Junkyard | Discovered new exit (range 16) 76 | -11/Junkyard | Entered Materials 308 | -10/Materials | Build established: Mutant 340 | -10/Materials | Discovered new exit (range 6) 605 | -10/Materials | Discovered new exit (range 5) 857 | -10/Materials | Core integrity fell below 50% 1087 | -10/Materials | Repaired Lgt. Treads 1116 | -10/Materials | Entered Mines 1140 | -10/Mines | Assisted by bots powering up and referring to "LRC-V3" 1269 | -10/Mines | Met a Derelict who couldn't figure out how to use a Trap Extractor 1558 | -10/Mines | Received a Mining Laser from a helpful Derelict 1808 | -10/Mines | Assembled infested the area 1849 | -10/Mines | Discovered new exit (range 12) 1867 | -10/Mines | Found the Drone Emporium 1871 | -10/Mines | Learned location of 1 exit from Materials 1914 | -10/Mines | Deemed a non-threat by the Exiles lab entrance 1914 | -10/Mines | Discovered new exit (range 5) 1923 | -10/Mines | Entered Exiles 1984 | -10/Exiles | Met 8R-AWN 2023 | -10/Exiles | Met EX-HEX 2104 | -10/Exiles | Met EX-BIN 2131 | -10/Exiles | Aligned with FarCom system 2133 | -10/Exiles | Given EX-Vault access code 2188 | -10/Exiles | Opened EX-Vault 2208 | -10/Exiles | Found AWS/Autocannon 2257 | -10/Exiles | Warned to stay clear of 0b10 Research branches 2329 | -10/Exiles | Met EX-DEC 2425 | -10/Exiles | Discovered new exit (range 14) 2458 | -10/Exiles | Left Exiles lab with AWS/Autocannon 2458 | -10/Exiles | Entered Mines 2464 | -9/Mines | Met a Derelict bent on vengeance 2470 | -9/Mines | Core integrity fell below 20% 2487 | -9/Mines | Destroyed by S-10 Pest with Light Assault Rifle Last Messages --------------- sneak in here and steal a few of HEX's prototypes. EX-DEC: Ah I see we have a visitor. One wrong move in here and I'll invert your atomic chain! 02331_ EX-DEC: "Oops, I hope HEX didn't hear that..." 02425_ EXIT=FOUND LOCATION=UNKNOWN GOAL=ESCAPE 02458_ Receiving FarCom transmissions... 02458_ S-10 Pest destroyed. 02460_ Lgt. Nuclear Core destroyed. 02461_ S-10 Pest destroyed. 02468_ C-30 ARC bursts open, deploying its payload. 02468_ G-47 Trooper unfolds itself. 02468_ G-34 Mercenary unfolds itself. 02469_ Lgt. Treads destroyed. 02471_ S-10 Pest destroyed. 02477_ Lgt. Treads destroyed. 02479_ G-34 Mercenary destroyed. 02481_ Lgt. Cannon destroyed. 02483_ Weapon Shielding destroyed. Map ----- +----------------------------------------------------+ | | | | | | | | | | | | | | | | | | | | | | | | | | | | | | | | | | | | | | | ???????????????????????????????????? | | ???????????????????????????????????? | | ?????????????????????########??????? | | ??????????????#??????# = #??????? | | ??????????????# =### %%%*#??????? | | ??????????????# s=%s =[% #??????? | | ?????????????????????#% =@% #??????? | | ?????????????????????# % #??????? | | ?????????????????????###g####??????? | | ???????????????????????#g??????????? | | ???????????????????????# ????????C?? | | ???????????????????????#r??????????? | | ???????????????????????#???????????? | | ???????????????????????????????????? | | ???????????????????????????????????? | | ???????????????????????????????????? | | ???????????????????????????????????? | | ???????????????????????????????????? | | ???????????????????????????????????? | | ???????????????????????????????????? | | ???????????????????????????????????? | | ???????????????????????????????????? | | ???????????????????????????????????? | | ???????????????????????????????????? | | ???????????????????????????????????? | | ???????????????????????????????????? | | ???????????????????????????????????? | | ???????????????????????????????????? | | ???????????????????????????????????? | | ???????????????????????????????????? | | ???????????????????????????????????? | +----------------------------------------------------+ Best States ------------- Heat Dissipation 25 Energy Generation 14 Energy Capacity 160 Matter Stores 300 Matter Capacity 300 Sight Range 16 Terrain Scan Density 10 Weapon Shielding 33 Evasion (%) 40 Recoil Reduction 2 Trap Extractor Capacity 6 Item Schematics ----------------- None Robot Schematics ------------------ None Fabricated ------------ Nothing Alien Tech Used ----------------- None Achievements -------------- None Challenges ------------ None Game ------ Seed EnhancedFissionMegatreads Manual? 0 Play Time 00:08:19 Cumulative 47.7 hours Start 2023.12.06 @ 20:54:14 End 2023.12.06 @ 21:02:37 Sessions 1 Manual Loads 0 Difficulty Rogue Special Mode None Game No. 76 Rogue 76 Adventurer 0 Explorer 0 Win Type - Total 1 Types 1/0/0/0/0/0/0/0/0 Lore% 26 Gallery% 39 Achievement% 34 Wizard Run 0 Options --------- ASCII 0 Keyboard 1 Movement Numpad Keybinds 0 Fullscreen 2 Font 18/SmallcapsGlow Map View 76x50 Tactical HUD 1 Map Filters NONE Filters NONE Steam 1 RUN: 906a2fc1-dfc0-4ba0-88d8-ffe6cc8b4ae6